bitfinex/quotes_SOLUSD_20260214
["timestamp","ask_amount","ask_price","bid_price","bid_amount"]
[1771061485587,1.94249671,85.959,85.92,1.97981629]
[1771061487480,1.94249671,85.959,85.922,1.97981629]
[1771061487889,1.94249671,85.949,85.922,1.97981629]
[1771061488684,1.94249671,85.955,85.922,1.97981629]
[1771061489200,5.85375649,85.95,85.922,1.97981629]
[1771061490218,5.85375649,85.95,85.921,40.73509385]
[1771061490219,5.85375649,85.96,85.924,1.97981629]
[1771061490389,1.94249671,85.981,85.941,1.97981629]
[1771061490887,11.62955437,85.988,85.941,1.97981629]
[1771061491206,1.94249671,85.979,85.943,1.97165474]
[1771061491393,1.88490608,85.985,85.945,1.97165474]
[1771061492282,1.88490608,85.985,85.944,40.72419249]
[1771061492283,1.88490608,85.985,85.961,1.97165474]
[1771061493419,1.88490608,86.014,85.971,1.97165474]
[1771061493601,1.88490608,86.008,85.971,1.97165474]
[1771061493897,1.88490608,86.008,85.98,5.85375649]
[1771061494292,1.88490608,86.008,85.98,1.97165474]
[1771061494794,1.88490608,86.008,85.974,1.97165474]
[1771061495886,1.88490608,86.008,85.976,1.97165474]
[1771061496610,1.88490608,86.006,85.976,1.97165474]
[1771061497810,29.06419885,86.017,85.975,11.63128816]
[1771061497811,11.6263877,86.012,85.981,1.97165474]
[1771061497992,1.88490608,86.011,85.983,1.97165474]
[1771061500193,1.94908536,86.009,85.983,1.97165474]
[1771061500394,1.94908536,86.009,85.984,11.63007071]
[1771061500694,1.94908536,86.009,85.984,13.47423984]
[1771061502310,11.62682541,86.008,85.984,13.47423984]
[1771061502609,1.94908536,86.007,85.984,13.47423984]
[1771061505011,1.94908536,86.007,85.985,1.84416913]
[1771061506810,1.94908536,86.007,85.98,5.85375649]
[1771061506811,1.94908536,86.007,85.987,1.84416913]
[1771061507019,1.94908536,86.013,85.987,1.84416913]
[1771061508108,1.94908536,86.013,85.991,13.4732931]
[1771061508912,1.94908536,86.013,85.991,11.62912397]
[1771061509229,1.94908536,86.013,85.992,1.84416913]
[1771061509633,9.5458356,86.019,86.0,5.85375649]
[1771061509912,7.59675024,86.019,86.001,1.84416913]
[1771061512116,7.59675024,86.019,86.002,1.84416913]
[1771061517420,7.59675024,86.019,85.985,1.84416913]
[1771061517421,1.94908536,86.018,85.985,1.84416913]
[1771061517924,1.94908536,86.018,85.991,1.84416913]
[1771061518819,1.94908536,86.018,85.981,11.6304765]
[1771061518820,1.94908536,86.018,86.0,5.85375649]
[1771061519125,1.94908536,86.018,86.001,1.84416913]
[1771061522325,1.94908536,86.018,85.997,1.92217675]
[1771061523535,1.94908536,86.018,85.999,1.92217675]
[1771061524221,7.59675024,86.019,85.998,11.62817739]
[1771061524222,7.59675024,86.019,86.001,1.92217675]
[1771061525637,0.2,86.03,86.001,1.92217675]
[1771061525938,1.96378695,86.029,86.003,1.92217675]
[1771061527722,1.96378695,86.029,86.005,1.92217675]
[1771061530136,0.2,86.03,86.007,1.92217675]
[1771061530644,0.2,86.03,86.011,1.92217675]
[1771061533836,0.2,86.03,86.013,1.92217675]
[1771061534849,0.2,86.03,86.015,1.92217675]
[1771061537138,0.2,86.03,86.017,1.92217675]
[1771061538442,0.2,86.03,86.019,1.92217675]
[1771061538949,0.2,86.03,86.018,11.62547373]
[1771061539154,2.16378695,86.03,86.018,11.62547373]
[1771061540041,0.2,86.03,86.019,1.92217675]
[1771061540350,0.2,86.04,86.021,1.92217675]
[1771061540536,0.01090063,86.05,86.023,4.61729252]
[1771061540736,0.01090063,86.05,86.01,5.84385331]
[1771061540737,0.01090063,86.05,86.041,1.92217675]
[1771061541154,0.2,86.06,86.041,1.92217675]
[1771061541367,0.2,86.06,86.051,1.92217675]
[1771061541649,0.2,86.07,86.051,1.92217675]
[1771061542160,0.2,86.07,86.062,1.92217675]
[1771061542947,0.2,86.07,86.037,1.92217675]
[1771061542948,2.16378695,86.07,86.037,1.92217675]
[1771061543150,2.16378695,86.07,86.041,1.92217675]
[1771061543855,1.96378695,86.068,86.037,11.62290642]
[1771061544355,1.96378695,86.066,86.031,13.54589378]
[1771061544549,1.96378695,86.059,86.02,5.84385331]
[1771061544737,1.96378695,86.059,86.012,1.92217675]
[1771061545340,1.96378695,86.049,86.012,1.92217675]
[1771061547352,11.6214206,86.048,86.013,11.62614953]
[1771061547555,1.96378695,86.047,86.013,13.54832628]
[1771061547951,1.96378695,86.047,86.014,1.92217675]
[1771061548446,1.96378695,86.045,86.015,13.54805595]
[1771061549267,1.96378695,86.045,86.016,1.92217675]
[1771061550737,1.96378695,86.045,86.018,1.92217675]
[1771061552859,1.91875982,86.049,86.02,1.90352292]
[1771061556351,1.91875982,86.047,86.02,1.90352292]
[1771061558150,1.91875982,86.045,86.02,1.90352292]
[1771061560967,1.82284049,86.043,86.02,1.90352292]
[1771061563869,1.82284049,86.041,86.014,13.49270975]
[1771061564074,1.82284049,86.039,86.009,11.62662153]
[1771061564367,11.622231,86.042,85.999,13.49480331]
[1771061564368,1.82284049,86.029,85.999,13.49480331]
[1771061564782,1.82284049,86.027,85.999,13.49480331]
[1771061565075,1.82284049,86.027,86.0,1.86683017]
[1771061566061,1.82284049,86.019,85.991,1.86683017]
[1771061566466,1.82284049,86.009,85.985,11.62993545]
[1771061566682,11.62682541,86.008,85.969,11.63209994]
[1771061566884,1.82284049,85.999,85.97,1.86683017]
[1771061567048,1.82284049,85.999,85.965,1.86683017]
[1771061567375,1.82284049,85.999,85.967,1.86683017]
[1771061567586,1.82284049,85.989,85.96,1.86683017]
[1771061567751,5.84385331,85.99,85.959,11.63334659]
[1771061567752,1.82284049,85.979,85.959,11.63334659]
[1771061568770,1.82284049,85.979,85.956,1.86683017]
[1771061569973,1.82284049,85.979,85.957,11.63372383]
[1771061570682,1.82284049,85.978,85.944,1.86683017]
[1771061571675,1.82284049,85.976,85.946,1.86683017]
[1771061573760,1.82284049,85.974,85.948,1.86683017]
[1771061574483,5.84385331,85.97,85.948,1.86683017]
[1771061574669,1.82284049,85.969,85.948,1.86683017]
[1771061575180,1.82284049,85.969,85.949,11.63480668]
[1771061575854,11.63128816,85.975,85.931,51.84]
[1771061575855,1.82284049,85.959,85.933,1.86683017]
[1771061577367,1.82284049,85.959,85.935,1.86683017]
[1771061579373,1.82284049,85.959,85.936,11.63656674]
[1771061579573,1.82284049,85.959,85.937,1.86683017]
[1771061581264,1.82284049,85.959,85.938,11.63629593]
[1771061582372,1.87523591,85.949,85.93,0.1]
[1771061583180,1.87523591,85.949,85.93,13.63634612]
[1771061583370,1.87523591,85.949,85.931,1.89906218]
[1771061583686,5.84385331,85.96,85.933,1.89906218]
[1771061583876,1.87523591,85.966,85.933,1.89906218]
[1771061584394,1.87523591,85.965,85.933,1.89906218]
[1771061585591,1.87523591,85.959,85.935,1.89906218]
[1771061585885,5.84385331,85.96,85.935,1.89906218]
[1771061586787,1.87523591,85.965,85.935,1.89906218]
[1771061588687,1.87523591,85.965,85.937,1.89906218]
[1771061589486,1.87523591,85.949,85.93,11.73734948]
[1771061589785,11.63277651,85.964,85.93,11.73734948]
[1771061589786,1.87523591,85.939,85.93,0.1]
[1771061594172,1.87523591,85.937,85.909,13.53915113]
[1771061595179,1.87523591,85.937,85.91,1.89906218]
[1771061597292,1.87523591,85.937,85.912,1.89906218]
[1771061597507,1.87523591,85.935,85.912,1.89906218]
[1771061598505,29.71109829,85.96,85.912,1.89906218]
[1771061598506,1.87523591,85.959,85.92,5.85463543]
[1771061598801,1.87523591,85.959,85.921,1.89906218]
[1771061599600,1.87523591,85.955,85.923,1.89906218]
[1771061601197,1.87523591,85.965,85.923,1.89906218]
[1771061601384,1.87523591,85.965,85.931,1.89906218]
[1771061601703,1.87523591,85.965,85.933,1.89906218]
[1771061602086,11.63247502,85.967,85.94,5.85463543]
[1771061602387,62.95523591,85.974,85.941,1.89906218]
[1771061602893,1.87523591,85.972,85.941,1.89906218]
[1771061603700,1.87523591,85.959,85.933,1.89906218]
[1771061605313,1.87523591,85.959,85.931,11.63723003]
[1771061609380,11.63358849,85.958,85.931,11.63723003]
[1771061609680,1.87523591,85.957,85.931,11.63723003]
[1771061609884,11.63233519,85.968,85.932,1.89906218]
[1771061610301,1.87523591,85.967,85.932,1.89906218]
[1771061612399,1.87523591,85.967,85.934,1.78932203]
[1771061613110,11.63233519,85.968,85.941,1.78932203]
[1771061613514,1.74192582,85.977,85.943,1.78932203]
[1771061616213,1.74192582,85.969,85.943,1.78932203]
[1771061616590,1.74192582,85.969,85.938,11.63625088]
[1771061616791,1.74192582,85.969,85.939,1.78932203]
[1771061617514,11.63223525,85.968,85.94,11.63602513]
[1771061617709,1.74192582,85.967,85.941,1.78932203]
[1771061619715,1.74192582,85.965,85.941,1.78932203]
[1771061622018,11.63250587,85.966,85.941,1.78932203]
[1771061622019,1.76109792,85.963,85.941,1.78932203]
[1771061622395,1.76109792,85.963,85.935,13.4448469]
[1771061622601,1.76109792,85.963,85.936,1.80826056]
[1771061623917,1.76109792,85.963,85.938,1.80826056]
[1771061625801,1.76109792,85.961,85.938,1.80826056]
[1771061626008,1.76109792,85.961,85.94,1.80826056]
[1771061628221,1.76109792,85.961,85.939,11.63616053]
[1771061633529,1.76109792,85.959,85.93,11.6373456]
[1771061634430,1.76109792,85.956,85.926,13.44618156]
[1771061634730,1.76109792,85.949,85.926,13.44618156]
[1771061635108,1.76109792,85.949,85.927,1.80826056]
[1771061636331,1.76109792,85.949,85.928,11.63765012]
[1771061639226,1.76109792,85.957,85.929,1.80826056]
[1771061639412,1.76109792,85.956,85.929,1.80826056]
[1771061640537,11.63399453,85.955,85.929,1.80826056]
[1771061640829,1.76109792,85.954,85.929,1.80826056]
[1771061641024,1.76109792,85.954,85.931,1.73376858]
[1771061643531,1.76109792,85.954,85.892,61.9]
[1771061643532,1.837617,85.939,85.901,1.73376858]
[1771061643734,1.837617,85.929,85.901,1.73376858]
[1771061644812,1.837617,85.929,85.902,1.73376858]
[1771061645328,1.837617,85.927,85.902,1.73376858]
[1771061647731,5.85463543,85.92,85.904,1.73376858]
[1771061647935,1.837617,85.927,85.904,1.73376858]
[1771061649619,1.837617,85.925,85.904,1.73376858]
[1771061649826,5.8599384,85.92,85.898,1.73376858]
[1771061650033,7.6975554,85.91,85.892,1.73376858]
[1771061650539,1.837617,85.919,85.892,1.73376858]
[1771061654725,1.837617,85.917,85.892,1.73376858]
[1771061656913,5.8599384,85.92,85.894,1.73376858]
[1771061657540,17.49868631,85.92,85.894,1.73376858]
[1771061658033,19.33630331,85.92,85.894,1.73376858]
[1771061658940,1.837617,85.919,85.894,1.73376858]
[1771061660236,1.837617,85.917,85.894,1.73376858]
[1771061663732,1.837617,85.917,85.896,1.73376858]
[1771061664534,63.84,85.924,85.898,1.73376858]
[1771061665334,17.49743434,85.93,85.898,1.73376858]
[1771061665540,1.837617,85.929,85.898,1.73376858]
[1771061665739,1.837617,85.929,85.9,1.73376858]
[1771061666748,11.6362485,85.939,85.901,1.73376858]
[1771061666950,1.837617,85.938,85.901,1.73376858]
[1771061668245,11.63629593,85.938,85.902,11.64117249]
[1771061668451,1.837617,85.937,85.903,1.73376858]
[1771061671042,1.837617,85.937,85.905,1.70258246]
[1771061673856,1.69952993,85.935,85.907,1.70258246]
[1771061674032,1.69952993,85.929,85.901,1.70258246]
[1771061674360,1.69952993,85.929,85.903,1.70258246]
[1771061676444,1.69952993,85.927,85.903,1.70258246]
[1771061678060,11.637921,85.926,85.903,1.70258246]
[1771061678239,1.69952993,85.925,85.903,1.70258246]
[1771061678962,5.8599384,85.92,85.898,1.70258246]
[1771061679141,1.69952993,85.919,85.891,1.70258246]
[1771061680338,1.84186512,85.917,85.893,1.85739584]
[1771061680856,1.77602727,85.917,85.893,1.85739584]
[1771061682256,64.14,85.933,85.903,1.85739584]
[1771061682860,65.98186512,85.933,85.903,1.85739584]
[1771061683160,1.84186512,85.932,85.903,1.85739584]
[1771061684453,1.84186512,85.929,85.903,1.85739584]
[1771061684759,1.84186512,85.929,85.902,11.64117249]
[1771061685256,1.84186512,85.929,85.893,1.85739584]
[1771061686260,1.84186512,85.927,85.893,1.85739584]
[1771061687363,1.84186512,85.919,85.893,1.85739584]
[1771061687762,1.84186512,85.919,85.894,11.64225673]
[1771061688071,1.84186512,85.928,85.895,1.85739584]
[1771061688275,11.63741104,85.93,85.895,1.85739584]
[1771061688471,1.84186512,85.929,85.895,1.85739584]
[1771061690564,1.84186512,85.927,85.896,11.64198565]
[1771061690757,11.63765012,85.928,85.884,1.85739584]
[1771061690758,1.84186512,85.919,85.884,1.85739584]
[1771061690961,5.8599384,85.93,85.891,1.85739584]
[1771061691268,1.84186512,85.929,85.891,1.85739584]
[1771061692355,11.63765012,85.928,85.892,11.64252782]
[1771061692557,1.84186512,85.927,85.893,1.85739584]
[1771061695578,1.84186512,85.927,85.895,1.85739584]
[1771061696082,1.84186512,85.925,85.895,1.85739584]
[1771061697779,5.8599384,85.93,85.897,1.85739584]
[1771061698077,1.84186512,85.931,85.897,1.85739584]
[1771061698464,1.84186512,85.929,85.897,1.85739584]
[1771061698872,64.14,85.933,85.897,1.85739584]
[1771061699073,1.84186512,85.932,85.897,1.85739584]
[1771061699266,1.84186512,85.929,85.897,1.85739584]
[1771061700368,1.84186512,85.927,85.899,1.85739584]
[1771061702679,1.81717019,85.944,85.901,1.69804452]
[1771061702867,1.81717019,85.939,85.901,1.69804452]
[1771061705581,1.81717019,85.937,85.903,1.69804452]
[1771061708774,1.81717019,85.937,85.905,1.69804452]
[1771061709171,1.81717019,85.957,85.921,1.69804452]
[1771061709367,1.81717019,85.955,85.921,1.69804452]
[1771061709569,1.81717019,85.949,85.921,1.69804452]
[1771061710887,11.63494205,85.948,85.921,1.69804452]
[1771061711194,1.81717019,85.947,85.921,1.69804452]
[1771061712578,1.81717019,85.947,85.922,11.63846279]
[1771061712771,1.81717019,85.947,85.923,1.69804452]
[1771061715688,1.81717019,85.947,85.925,1.69804452]
[1771061716696,64.38,85.953,85.927,1.69804452]
[1771061716997,1.81717019,85.966,85.941,1.69804452]
[1771061717706,11.63115287,85.976,85.941,1.69804452]
[1771061717998,13.44832306,85.976,85.941,1.69804452]
[1771061718188,1.81717019,85.975,85.941,1.69804452]
[1771061718695,11.63142345,85.974,85.943,1.69804452]
[1771061718881,1.81717019,85.973,85.943,1.69804452]
[1771061720202,1.81717019,85.981,85.951,1.69804452]
[1771061720374,1.81717019,85.98,85.951,1.69804452]
[1771061721080,1.81717019,85.978,85.951,1.69804452]
[1771061723799,6.07164617,85.984,85.961,1.69804452]
[1771061724194,11.62967266,85.987,85.961,1.69804452]
[1771061724505,1.81717019,85.986,85.961,1.69804452]
[1771061725698,1.81717019,85.984,85.952,1.69804452]
[1771061730098,1.81717019,85.979,85.953,11.63426523]
[1771061730308,1.81717019,85.979,85.954,1.69804452]
[1771061730702,1.81717019,85.979,85.948,11.63494139]
[1771061731810,1.81717019,85.979,85.948,13.34164339]
[1771061732698,11.63088231,85.978,85.948,13.34164339]
[1771061733008,1.7940916,85.977,85.948,11.63494139]
[1771061733207,1.7940916,85.977,85.948,13.34164339]
[1771061734806,1.7940916,85.977,85.918,61.9]
[1771061734807,1.7940916,85.959,85.931,1.706702]
[1771061735112,1.7940916,85.959,85.932,1.706702]
[1771061736202,1.7940916,85.939,85.905,1.706702]
[1771061738819,1.7940916,85.947,85.91,5.85675934]
[1771061739007,5.85675934,85.95,85.911,1.706702]
[1771061740095,11.63480668,85.949,85.913,1.73919038]
[1771061740294,11.63480668,85.949,85.921,1.73919038]
[1771061740902,13.40524175,85.949,85.921,1.73919038]
[1771061741306,1.77043507,85.954,85.921,1.73919038]
[1771061742208,1.77043507,85.952,85.923,1.73919038]
[1771061742407,1.77043507,85.939,85.912,1.73919038]
[1771061742609,1.77043507,85.939,85.902,29.10285926]
[1771061742610,1.77043507,85.939,85.91,11.64001461]
[1771061742997,1.77043507,85.939,85.911,1.73919038]
[1771061744416,1.77043507,85.929,85.91,11.64001461]
[1771061745725,1.77043507,85.929,85.91,1.73919038]
[1771061746522,1.77043507,85.943,85.911,1.73919038]
[1771061746707,1.77043507,85.939,85.911,1.73919038]
[1771061747025,1.77043507,85.929,85.905,1.73919038]
[1771061747425,1.77043507,85.919,85.892,1.73919038]
[1771061748610,1.77043507,85.917,85.892,1.73919038]
[1771061749224,1.77043507,85.917,85.894,1.73919038]
[1771061750923,76.03715432,85.932,85.896,1.73919038]
[1771061751118,5.85675934,85.93,85.896,1.73919038]
[1771061751427,1.77043507,85.947,85.91,5.85675934]
[1771061751613,1.77043507,85.945,85.911,1.73919038]
[1771061752127,1.77043507,85.945,85.895,40.74742417]
[1771061752128,13.40506691,85.951,85.921,1.73919038]
[1771061752730,1.77043507,85.957,85.921,1.73919038]
[1771061752921,1.77043507,85.957,85.923,1.73919038]
[1771061754235,1.77043507,85.955,85.923,1.73919038]
[1771061755011,17.70707874,85.954,85.924,11.63819189]
[1771061755329,1.77043507,85.953,85.924,11.63819189]
[1771061755916,1.77043507,85.953,85.924,13.37738227]
[1771061756323,1.77043507,85.953,85.925,1.73919038]
[1771061757324,1.77043507,85.953,85.926,11.637921]
[1771061757519,1.77043507,85.951,85.926,11.637921]
[1771061757923,1.77043507,85.951,85.927,1.73919038]
[1771061758122,1.77043507,85.961,85.931,1.73919038]
[1771061759016,6.07220146,85.964,85.931,1.73919038]
[1771061759214,1.77043507,85.965,85.933,1.73919038]
[1771061760334,1.77043507,85.964,85.933,1.73919038]
[1771061761640,1.69850593,85.962,85.935,1.66061735]
[1771061762224,1.69850593,85.959,85.935,1.66061735]
[1771061762636,1.69850593,85.959,85.929,11.63741338]
[1771061763838,1.69850593,85.957,85.929,1.66061735]
[1771061764748,1.69850593,85.957,85.922,1.66061735]
[1771061766136,1.69850593,85.955,85.923,11.63832733]
[1771061766345,1.69850593,85.949,85.922,1.66061735]
[1771061767124,1.69850593,85.949,85.917,11.63908641]
[1771061767340,1.69850593,85.949,85.917,13.29970376]
[1771061768040,1.69850593,85.949,85.918,1.66061735]
[1771061768242,1.69850593,85.947,85.919,11.63886916]
[1771061768746,1.69850593,85.947,85.92,1.66061735]
[1771061769425,1.69850593,85.947,85.921,1.66061735]
[1771061770832,1.69850593,85.947,85.922,11.63846279]
[1771061771015,1.69850593,85.947,85.923,1.66061735]
[1771061771421,11.6352128,85.946,85.923,1.66061735]
[1771061771621,11.6352128,85.946,85.905,29.10168682]
[1771061771622,1.69850593,85.945,85.916,1.66061735]
[1771061772942,1.69850593,85.945,85.917,13.29975745]
[1771061773140,1.69850593,85.945,85.918,1.66061735]
[1771061773936,1.69850593,85.943,85.918,1.66061735]
[1771061778651,1.69850593,85.943,85.92,1.66061735]
[1771061783850,1.69850593,85.943,85.921,11.63859824]
[1771061784058,1.69850593,85.943,85.922,1.66061735]
[1771061790440,1.69850593,85.943,85.923,11.63832733]
[1771061790643,11.63483047,85.949,85.924,1.66061735]
[1771061791348,13.311139,85.949,85.924,1.66061735]
[1771061792151,1.67630853,85.948,85.924,1.66061735]
[1771061795558,6.07347415,85.954,85.926,1.78442235]
[1771061795756,1.67630853,85.975,85.941,1.78442235]
[1771061795957,5.85667676,85.99,85.941,1.78442235]
[1771061795958,1.67630853,85.98,85.941,1.78442235]
[1771061796160,11.63043915,85.982,85.951,1.78442235]
[1771061796358,13.30674768,85.982,85.951,1.78442235]
[1771061796565,1.67630853,85.981,85.951,1.78442235]
[1771061797269,1.67630853,85.979,85.951,1.78442235]
[1771061797568,1.67630853,85.979,85.946,1.78442235]
[1771061798871,1.67630853,85.995,85.961,1.78442235]
[1771061799077,66.13630853,85.999,85.971,1.78442235]
[1771061799257,1.67630853,85.998,85.971,1.78442235]
[1771061800953,1.67464174,85.996,85.962,1.79397813]
[1771061801154,1.67464174,85.989,85.954,1.79397813]
[1771061801359,1.67464174,85.987,85.954,1.79397813]
[1771061801542,1.67464174,85.979,85.943,11.63549353]
[1771061801744,5.85667676,85.98,85.941,1.79397813]
[1771061801745,1.67464174,85.977,85.941,1.79397813]
[1771061802764,1.67464174,85.977,85.941,13.42986786]
[1771061802970,11.63076693,85.979,85.952,1.79397813]
[1771061803343,13.30540867,85.979,85.952,1.79397813]
[1771061803965,66.09464174,85.987,85.952,1.79397813]
[1771061804252,64.42,85.987,85.952,1.79397813]
[1771061804649,64.42,85.987,85.961,1.79397813]
[1771061805358,11.6298002,85.986,85.961,1.79397813]
[1771061806173,1.67464174,85.985,85.961,1.79397813]
[1771061806362,1.67464174,85.979,85.956,11.63383409]
[1771061806558,1.67464174,85.979,85.957,1.79397813]
[1771061806759,1.67464174,85.979,85.949,1.79397813]
[1771061807168,1.67464174,85.977,85.949,1.79397813]
[1771061808469,1.67464174,85.975,85.949,1.79397813]
[1771061808857,1.67464174,85.975,85.95,11.63467132]
[1771061809170,1.67464174,85.975,85.951,1.79397813]
[1771061810765,1.67464174,85.973,85.951,1.79397813]
[1771061813361,1.67464174,85.969,85.939,1.79397813]
[1771061813661,1.67464174,85.969,85.931,29.09284009]
[1771061813662,1.67464174,85.949,85.896,1.79397813]
[1771061813862,1.67464174,85.929,85.896,1.79397813]
[1771061815181,1.67464174,85.929,85.898,1.79397813]
[1771061815358,1.67464174,85.938,85.901,1.79397813]
[1771061815869,5.85667676,85.93,85.901,1.79397813]
[1771061816886,1.67464174,85.972,85.911,1.79397813]
[1771061817185,5.85667676,85.95,85.923,1.79397813]
[1771061817682,1.67464174,85.953,85.923,1.79397813]
[1771061817880,1.67464174,85.949,85.923,1.79397813]
[1771061820783,1.67464174,85.947,85.923,1.79397813]
[1771061821167,29.71109829,85.967,85.931,1.7218096]
[1771061822274,1.68545527,85.965,85.933,1.7218096]
[1771061822478,1.68545527,85.959,85.928,1.7218096]
[1771061823166,1.68545527,85.973,85.941,1.7218096]
[1771061823366,1.68545527,85.988,85.941,1.7218096]
[1771061824281,1.68545527,85.986,85.943,1.7218096]
[1771061825483,11.62817739,85.998,85.971,1.7218096]
[1771061826391,1.68545527,86.007,85.971,1.7218096]
[1771061827191,1.68545527,86.007,85.973,1.7218096]
[1771061828391,11.62709578,86.006,85.975,1.7218096]
[1771061830288,11.62614953,86.013,85.976,11.63115287]
[1771061830594,1.68545527,86.012,85.977,1.7218096]
[1771061831081,5.85667676,86.01,85.977,1.7218096]
[1771061831778,11.62549793,86.018,85.991,1.7218096]
[1771061831986,1.68545527,86.013,85.991,1.7218096]
[1771061833087,1.68545527,86.009,85.983,1.7218096]
[1771061833282,1.68545527,86.016,85.985,1.7218096]
[1771061833483,11.62601436,86.014,85.985,1.7218096]
[1771061833794,1.68545527,86.013,85.985,1.7218096]
[1771061834677,19.38324497,86.015,85.985,1.7218096]
[1771061834868,1.68545527,86.014,85.985,1.7218096]
[1771061835073,13.3116048,86.013,85.987,1.7218096]
[1771061835300,1.68545527,86.012,85.987,1.7218096]
[1771061838894,7.75732622,86.015,85.991,1.7218096]
[1771061839213,7.75732622,86.015,85.993,1.7218096]
[1771061841083,7.75732622,86.015,85.995,1.7218096]
[1771061842798,1e-08,86.02,86.011,1.7218096]
[1771061842986,1e-08,86.03,86.014,1.7218096]
[1771061843410,13.3062194,86.053,86.021,1.7218096]
[1771061844094,13.3062194,86.053,86.022,1.7218096]
[1771061844282,11.62076413,86.053,86.031,1.7218096]
[1771061845312,0.2,86.06,86.023,11.62474141]
[1771061845313,0.2,86.06,86.041,1.7218096]
[1771061845512,0.2,86.07,86.051,1.7218096]
[1771061846700,0.2,86.07,86.053,1.7218096]
[1771061846899,0.2,86.07,86.061,1.7218096]
[1771061847100,0.2,86.07,86.052,11.62088039]
[1771061848323,11.6161464,86.088,86.06,5.84713716]
[1771061848526,0.2,86.09,86.06,5.84713716]
[1771061849002,0.2,86.09,86.061,1.46326443]
[1771061849198,13.3026906,86.079,86.051,1.46326443]
[1771061849500,1.68545527,86.078,86.051,1.46326443]
[1771061850299,1.68545527,86.078,86.053,1.46504053]
[1771061850500,11.81711646,86.08,86.053,1.46504053]
[1771061851200,1.64281389,86.079,86.053,1.46504053]
[1771061852302,1.64281389,86.079,86.055,1.46419651]
[1771061852496,0.2,86.08,86.055,1.46419651]
[1771061853701,1.64281389,86.089,86.06,5.84713716]
[1771061854317,1.64281389,86.089,86.054,12.88452453]
[1771061854615,1.64281389,86.088,86.05,55.66713716]
[1771061855010,1.64281389,86.088,86.05,56.9308029]
[1771061855212,1.64281389,86.088,86.051,1.26366574]
[1771061855611,1.64281389,86.087,86.051,1.26366574]
[1771061856624,1.64281389,86.085,86.06,5.84713716]
[1771061858127,1.64281389,86.083,86.056,1.26354471]
[1771061859329,1.64281389,86.083,86.057,1.26318487]
[1771061859904,1.64281389,86.083,86.051,11.62096375]
[1771061860105,29.03990905,86.089,86.044,11.62196085]
[1771061860106,1.69621018,86.079,86.044,11.62196085]
[1771061860329,1.69621018,86.079,86.045,1.26295367]
[1771061860633,1.69621018,86.079,86.05,7.07520751]
[1771061862429,1.69621018,86.079,86.051,11.62101544]
[1771061862728,1.69621018,86.079,86.052,1.26270279]
[1771061864135,1.69621018,86.079,86.051,11.62101544]
[1771061864535,1.69621018,86.079,86.05,7.07520751]
[1771061864536,1.69621018,86.078,86.05,4.7173837]
[1771061865214,1.69621018,86.078,86.051,1.26236506]
[1771061867616,1.69621018,86.078,86.052,11.62088039]
[1771061869336,1.69621018,86.078,86.053,1.26197617]
[1771061869825,0.2,86.09,86.071,1.26188146]
[1771061870350,11.6143807,86.101,86.072,1.06188146]
[1771061871237,11.6143807,86.101,86.073,11.61804514]
[1771061871438,1.69621018,86.099,86.073,11.61804514]
[1771061871645,1.69621018,86.089,86.054,49.86]
[1771061871838,1.69621018,86.079,86.052,1.06189252]
[1771061872427,1.69621018,86.069,86.043,11.62209592]
[1771061872634,1.69621018,86.069,86.044,1.06194098]
[1771061873633,1.69621018,86.069,86.046,1.06200942]
[1771061874437,1.69621018,86.067,86.046,1.06200942]
[1771061874641,1.69621018,86.067,86.039,1.06205916]
[1771061874844,1.69621018,86.067,86.032,46.96]
[1771061875041,1.69621018,86.067,86.032,48.0221325]
[1771061875252,1.69621018,86.067,86.033,1.0621325]
[1771061876547,4.7173837,86.07,86.032,46.96]
[1771061876548,1.69621018,86.065,86.035,1.06218587]
[1771061878461,4.7173837,86.08,86.035,1.06218587]
[1771061878755,1.69621018,86.079,86.035,1.06218587]
[1771061879744,1.69621018,86.075,86.037,1.06231227]
[1771061880345,4.7173837,86.07,86.037,1.06231227]
[1771061880538,11.6176487,86.076,86.032,11.62358192]
[1771061880539,1.69621018,86.059,86.032,11.62358192]
[1771061882053,1.72483235,86.057,86.022,11.62493315]
[1771061882232,1.72483235,86.057,86.023,49.94]
[1771061882433,1.72483235,86.049,86.023,49.94]
[1771061882649,1.72483235,86.049,86.022,11.62493315]
[1771061883654,1.72483235,86.049,86.014,12.6884751]
[1771061883956,1.72483235,86.049,86.015,1.06259051]
[1771061884453,1.72483235,86.047,86.016,11.62574404]
[1771061885058,1.72483235,86.047,86.016,12.68842579]
[1771061885444,1.72483235,86.054,86.018,1.06268175]
[1771061885644,1.72483235,86.054,86.021,1.06268175]
[1771061886260,1.72483235,86.049,86.014,1.06273579]
[1771061886552,1.72483235,86.059,86.021,1.06273579]
[1771061886947,1.72483235,86.078,86.051,1.0627858]
[1771061887159,1.72483235,86.078,86.046,50.0]
[1771061887535,1.72483235,86.069,86.046,50.0]
[1771061887752,1.72483235,86.069,86.034,11.62321251]
[1771061888057,1.72483235,86.069,86.034,61.64321251]
[1771061888440,1.72483235,86.069,86.035,1.06284277]
[1771061889040,1.72483235,86.067,86.038,1.06289297]